fUST/lending_fUST_20240131
["ID","MTS","AMOUNT","RATE_DAILY","PERIOD"]
[313039943,1706674232378,-534.66921395,0.00021055,2]
[313039944,1706674232388,-155.49572129,0.00021055,2]
[313039945,1706674232397,-1202.09442314,0.00021055,2]
[313039946,1706674232407,-591.21263005,0.00021055,2]
[313039947,1706674232419,-909.38245873,0.00021055,2]
[313039948,1706674232428,-155.28453326,0.00021055,2]
[313039949,1706674232438,-529.09941661,0.00021055,2]
[313039950,1706674232447,-208.39220199,0.00021055,2]
[313039951,1706674232456,-524.3374507,0.00021055,2]
[313039952,1706674232465,-558.20108116,0.00021055,2]
[313039953,1706674232474,-161.19857963,0.00021055,2]
[313039954,1706674232483,-2878.81959013,0.00021055,2]
[313039955,1706674232493,-233.99326596,0.00021055,2]
[313039956,1706674232502,-226.10079499,0.00021055,2]
[313039957,1706674232511,-610.84917874,0.00021055,2]
[313039958,1706674232520,-2820.88383475,0.00021055,2]
[313039959,1706674232529,-4859.51165206,0.00021055,2]
[313039960,1706674232538,-155.7244453,0.00021055,2]
[313039961,1706674232547,-303.31030986,0.00021055,2]
[313039962,1706674232556,-500.0,0.00021055,2]
[313039963,1706674232565,-155.91501636,0.00021055,2]
[313039964,1706674232574,-682.06374149,0.00021055,2]
[313039965,1706674232583,-1589.68284634,0.00021055,2]
[313039966,1706674232593,-1710.15254645,0.00021055,2]
[313039967,1706674232602,-176.47754897,0.00021055,2]
[313039968,1706674232611,-243.91921588,0.00021055,2]
[313039969,1706674232621,-163.36525475,0.00021055,2]
[313039970,1706674232630,-156.72065307,0.00021055,2]
[313039971,1706674232640,-156.69992293,0.00021055,2]
[313039972,1706674232649,-155.29064446,0.00021055,2]
[313039973,1706674232658,-525.27501604,0.00021055,2]
[313039974,1706674232667,-561.21221054,0.00021055,2]
[313039975,1706674232677,-180.06935571,0.00021055,2]
[313039976,1706674232686,-489.0,0.00021056,2]
[313039977,1706674232695,-225.65776733,0.00021056,2]
[313039978,1706674232704,-472.4833423,0.00021056,2]
[313039979,1706674232713,-181.49299151,0.00021056,2]
[313039980,1706674232723,-13268.00328189,0.00021056,2]
[313040038,1706674238363,-5876.09479514,0.00021056,2]
[313040039,1706674238373,-166.07172984,0.00022491,2]
[313040040,1706674238382,-200.0,0.00022559,7]
[313040041,1706674238391,-166.07172984,0.00024026,2]
[313040042,1706674238401,-280.0,0.00024815,7]
[313040043,1706674238410,-168.78632458,0.00025297,2]
[313040044,1706674238419,-166.07172984,0.00025562,2]
[313040045,1706674238428,-627.66898086,0.000264,2]
[313040046,1706674238437,-237.1866,0.000266,2]
[313040047,1706674238446,-166.07172984,0.00027097,2]
[313040048,1706674238455,-9764.42,0.00027177,3]
[313040049,1706674238465,-15998.30261179,0.00027185,2]
[313040050,1706674238474,-11717.3,0.00027187,3]
[313040051,1706674238483,-168.87779292,0.00027196,2]
[313040052,1706674238492,-500.0,0.00027196,2]
[313040053,1706674238501,-500.0,0.00027196,2]
[313040054,1706674238511,-500.0,0.00027196,2]
[313040055,1706674238519,-500.0,0.00027196,2]
[313040056,1706674238528,-500.0,0.00027196,2]
[313040057,1706674238537,-500.0,0.00027196,2]
[313040058,1706674238547,-500.0,0.00027196,2]
[313040059,1706674238556,-500.0,0.00027196,2]
[313040060,1706674238565,-357.85562389,0.00027196,2]
[313040061,1706674238575,-500.0,0.00027196,2]
[313040062,1706674238584,-500.0,0.00027196,2]
[313040063,1706674238594,-328.09210413,0.00027196,2]
[313040064,1706674238603,-500.0,0.00027196,2]
[313040065,1706674238612,-235.51020428,0.00027196,2]
[313040066,1706674238621,-606.05711182,0.00027196,2]
[313040067,1706674238630,-500.0,0.00027196,2]
[313040068,1706674238639,-500.0,0.00027196,2]
[313040069,1706674238648,-500.0,0.00027196,2]
[313040070,1706674238658,-523.91944735,0.00027196,2]
[313040071,1706674238667,-500.0,0.00027196,2]
[313040072,1706674238676,-569.37774921,0.00027196,2]
[313040073,1706674238685,-283.85066133,0.00027196,2]
[313040074,1706674238694,-60761.3305721,0.00027197,2]
[313040075,1706674238706,-121465.62513431,0.00027197,2]
[313040076,1706674238715,-151.0,0.00027197,2]
[313040077,1706674238725,-151.485151,0.00027197,2]
[313040078,1706674238734,-5370.59526054,0.00027246,2]
[313040079,1706674238743,-150.5179392,0.00027246,2]
[313040080,1706674238752,-2591.54458135,0.00027246,2]
[313040081,1706674238762,-1000.0,0.00027296,3]
[313040082,1706674238771,-1021.26999705,0.00027296,3]
[313040083,1706674238782,-391.0,0.00027296,15]
[313040084,1706674238793,-9992.22581636,0.0002738,2]
[313040085,1706674238802,-151.0,0.0002738,2]
[313040086,1706674238811,-151.0,0.0002738,2]
[313040087,1706674238820,-812.061913,0.0002738,2]
[313040088,1706674238830,-812.061913,0.0002738,2]
[313040089,1706674238839,-743.671919,0.0002738,2]
[313040090,1706674238849,-743.671919,0.0002738,2]
[313040091,1706674238858,-151.0,0.0002738,2]
[313040092,1706674238867,-6223.9395,0.0002738,2]
[313040093,1706674238878,-6223.9395,0.0002738,2]
[313040094,1706674238887,-359.19136888,0.00027396,2]
[313040095,1706674238897,-525.18728111,0.00027396,2]
[313040096,1706674238907,-220.52443697,0.00027396,2]
[313040097,1706674238917,-395.46875411,0.00027396,2]
[313040098,1706674238927,-464.01142427,0.00027396,2]
[313040099,1706674238937,-1691.78321009,0.00027396,2]
[313040100,1706674238947,-765.11367349,0.00027397,2]
[313040101,1706674238957,-280.15723649,0.00027397,2]
[313040102,1706674238967,-500.0,0.00027397,2]
[313040103,1706674238976,-500.0,0.00027397,2]
[313040104,1706674238986,-500.0,0.00027397,2]
[313040105,1706674238996,-500.0,0.00027397,2]
[313040106,1706674239006,-500.0,0.00027397,2]
[313040107,1706674239015,-525.54704161,0.00027397,2]
[313040108,1706674239025,-500.0,0.00027397,2]
[313040109,1706674239035,-510.28166976,0.00027397,2]
[313040110,1706674239044,-648.66221792,0.00027397,2]
[313040111,1706674239054,-500.0,0.00027397,2]
[313040112,1706674239064,-500.0,0.00027397,2]
[313040113,1706674239074,-988.17,0.00027397,2]
[313040114,1706674239083,-500.0,0.00027397,2]
[313040115,1706674239093,-162.99345111,0.00027397,2]
[313040116,1706674239102,-529.03,0.00027397,2]
[313040117,1706674239112,-564.60602361,0.00027397,2]
[313040118,1706674239121,-500.0,0.00027397,2]
[313040119,1706674239130,-532.86668844,0.00027397,2]
[313040120,1706674239139,-506.08385949,0.00027397,2]
[313040121,1706674239149,-500.0,0.00027397,2]
[313040122,1706674239158,-500.0,0.00027397,2]
[313040123,1706674239167,-618.93733372,0.00027397,2]
[313040124,1706674239177,-500.0,0.00027397,2]
[313040125,1706674239186,-1307.78,0.00027397,2]
[313040126,1706674239195,-1316.91,0.00027397,2]
[313040127,1706674239206,-500.0,0.00027397,2]
[313040128,1706674239215,-500.0,0.00027397,2]
[313040129,1706674239225,-500.0,0.00027397,2]
[313040130,1706674239234,-607.24712456,0.00027397,2]
[313040131,1706674239243,-500.0,0.00027397,2]
[313040132,1706674239252,-191.87165318,0.00027397,2]
[313040133,1706674239261,-500.0,0.00027397,2]
[313040134,1706674239270,-500.0,0.00027397,2]
[313040135,1706674239280,-301.81018742,0.00027397,2]
[313040136,1706674239289,-526.74975323,0.00027397,2]
[313040137,1706674239298,-500.0,0.00027397,2]
[313040138,1706674239307,-486.53614602,0.00027397,2]
[313040139,1706674239316,-600.0,0.00027397,2]
[313040140,1706674239327,-500.0,0.00027397,2]
[313040141,1706674239336,-500.0,0.00027397,2]
[313040142,1706674239345,-500.0,0.00027397,2]
[313040143,1706674239354,-500.0,0.00027397,2]
[313040144,1706674239364,-1388.6,0.00027397,2]
[313040145,1706674239373,-154.36870151,0.00027397,2]
[313040146,1706674239382,-1173.66,0.00027397,2]
[313040147,1706674239392,-640.5,0.00027397,2]
[313040148,1706674239402,-515.55925059,0.00027397,2]
[313040149,1706674239411,-186.20703741,0.00027397,2]
[313040150,1706674239420,-524.66394145,0.00027397,2]
[313040151,1706674239430,-508.06856971,0.00027397,2]
[313040152,1706674239439,-500.0,0.00027397,2]
[313040153,1706674239448,-500.0,0.00027397,2]
[313040154,1706674239457,-500.0,0.00027397,2]
[313040155,1706674239467,-162.67719447,0.00027397,2]
[313040156,1706674239477,-500.0,0.00027397,2]
[313040157,1706674239487,-500.0,0.00027397,2]
[313040158,1706674239496,-500.0,0.00027397,2]
[313040159,1706674239505,-500.0,0.00027397,2]
[313040160,1706674239514,-500.0,0.00027397,2]
[313040161,1706674239524,-500.0,0.00027397,2]
[313040162,1706674239533,-604.06409721,0.00027397,2]
[313040163,1706674239542,-500.0,0.00027397,2]
[313040164,1706674239551,-500.0,0.00027397,2]
[313040165,1706674239560,-206.15832724,0.00027397,2]
[313040166,1706674239569,-500.0,0.00027397,2]
[313040167,1706674239580,-500.0,0.00027397,2]
[313040168,1706674239589,-500.0,0.00027397,2]
[313040169,1706674239598,-500.0,0.00027397,2]
[313040170,1706674239607,-635.53841817,0.00027397,2]
[313040171,1706674239617,-219.78349457,0.00027397,2]
[313040172,1706674239626,-500.0,0.00027397,2]
[313040173,1706674239635,-500.0,0.00027397,2]
[313040174,1706674239644,-589.20595474,0.00027397,2]
[313040175,1706674239653,-500.0,0.00027397,2]
[313040176,1706674239662,-508.87380754,0.00027397,2]
[313040177,1706674239671,-500.0,0.00027397,2]
[313040178,1706674239680,-500.0,0.00027397,2]
[313040179,1706674239689,-500.0,0.00027397,2]
[313040180,1706674239698,-500.0,0.00027397,2]
[313040181,1706674239708,-318.97137983,0.00027397,2]
[313040182,1706674239717,-500.0,0.00027397,2]
[313040183,1706674239726,-201.30503836,0.00027397,2]
[313040184,1706674239735,-989.4,0.00027397,2]
[313040185,1706674239744,-500.0,0.00027397,2]
[313040186,1706674239753,-500.0,0.00027397,2]
[313040187,1706674239763,-500.0,0.00027397,2]
[313040188,1706674239773,-500.0,0.00027397,2]
[313040189,1706674239786,-1115.41,0.00027397,2]
[313040190,1706674239795,-500.0,0.00027397,2]
[313040191,1706674239804,-560.05,0.00027397,2]
[313040192,1706674239814,-445.43476679,0.00027397,2]
[313040193,1706674239824,-500.0,0.00027397,2]
[313040194,1706674239833,-500.0,0.00027397,2]
[313040195,1706674239843,-151.0,0.00027397,2]
[313040196,1706674239853,-500.0,0.00027397,2]
[313040197,1706674239863,-500.0,0.00027397,2]
[313040198,1706674239873,-513.61736251,0.00027397,2]
[313040199,1706674239883,-524.08,0.00027397,2]
[313040200,1706674239892,-500.0,0.00027397,2]
[313040201,1706674239902,-517.49697608,0.00027397,2]
[313040202,1706674239911,-500.0,0.00027397,2]
[313040203,1706674239920,-500.0,0.00027397,2]
[313040204,1706674239930,-500.0,0.00027397,2]
[313040205,1706674239939,-203.85124722,0.00027397,2]
[313040206,1706674239950,-500.0,0.00027397,2]
[313040207,1706674239959,-500.0,0.00027397,2]
[313040208,1706674239969,-500.0,0.00027397,2]
[313040209,1706674239978,-500.0,0.00027397,2]
[313040210,1706674239987,-500.0,0.00027397,2]
[313040211,1706674239997,-500.0,0.00027397,2]
[313040212,1706674240006,-500.0,0.00027397,2]
[313040213,1706674240016,-500.0,0.00027397,2]
[313040214,1706674240097,-500.0,0.00027397,2]
[313040215,1706674240106,-500.0,0.00027397,2]
[313040216,1706674240116,-500.0,0.00027397,2]
[313040217,1706674240125,-500.0,0.00027397,2]
[313040218,1706674240134,-247.17782299,0.00027397,2]
[313040219,1706674240143,-500.0,0.00027397,2]
[313040220,1706674240152,-500.0,0.00027397,2]
[313040221,1706674240161,-500.0,0.00027397,2]
[313040222,1706674240170,-500.0,0.00027397,2]
[313040223,1706674240179,-500.0,0.00027397,2]
[313040224,1706674240189,-500.0,0.00027397,2]
[313040225,1706674240198,-500.0,0.00027397,2]
[313040226,1706674240208,-500.0,0.00027397,2]
[313040227,1706674240217,-500.0,0.00027397,2]
[313040228,1706674240226,-515.07948473,0.00027397,2]
[313040229,1706674240235,-500.0,0.00027397,2]
[313040230,1706674240244,-500.0,0.00027397,2]
[313040231,1706674240254,-500.0,0.00027397,2]
[313040232,1706674240263,-475.54768842,0.00027397,2]
[313040233,1706674240272,-500.0,0.00027397,2]
[313040234,1706674240281,-502.58473954,0.00027397,2]
[313040235,1706674240290,-500.0,0.00027397,2]
[313040236,1706674240299,-500.0,0.00027397,2]
[313040237,1706674240308,-500.0,0.00027397,2]
[313040238,1706674240317,-590.71121916,0.00027397,2]
[313040239,1706674240326,-885.34,0.00027397,2]
[313040240,1706674240335,-505.35884581,0.00027397,2]
[313040241,1706674240344,-3472.22,0.00027397,2]
[313040242,1706674240354,-500.0,0.00027397,2]
[313040245,1706674240363,-500.0,0.00027397,2]
[313040248,1706674240372,-570.36623698,0.00027397,2]
[313040249,1706674240381,-500.0,0.00027397,2]
[313040250,1706674240390,-500.0,0.00027397,2]
[313040251,1706674240399,-500.0,0.00027397,2]
[313040252,1706674240409,-306.69723996,0.00027397,2]
[313040253,1706674240418,-500.0,0.00027397,2]
[313040254,1706674240427,-500.0,0.00027397,2]
[313040255,1706674240435,-500.0,0.00027397,2]
[313040256,1706674240444,-500.0,0.00027397,2]
[313040257,1706674240454,-500.0,0.00027397,2]
[313040258,1706674240464,-500.0,0.00027397,2]
[313040259,1706674240473,-500.0,0.00027397,2]
[313040260,1706674240481,-500.0,0.00027397,2]
[313040261,1706674240490,-708.41,0.00027397,2]
[313040262,1706674240499,-500.0,0.00027397,2]
[313040263,1706674240508,-606.6,0.00027397,2]
[313040264,1706674240517,-500.0,0.00027397,2]
[313040265,1706674240527,-500.0,0.00027397,2]
[313040266,1706674240536,-189.17551383,0.00027397,2]
[313040267,1706674240545,-500.0,0.00027397,2]
[313040268,1706674240554,-500.0,0.00027397,2]
[313040269,1706674240563,-281.62078907,0.00027397,2]
[313040270,1706674240573,-500.0,0.00027397,2]
[313040271,1706674240583,-500.0,0.00027397,2]
[313040272,1706674240592,-500.0,0.00027397,2]
[313040273,1706674240601,-500.0,0.00027397,2]
[313040274,1706674240610,-500.0,0.00027397,2]
[313040275,1706674240619,-500.0,0.00027397,2]
[313040277,1706674240628,-541.55455863,0.00027397,2]
[313040279,1706674240638,-363.58117365,0.00027397,2]
[313040280,1706674240647,-1000.0,0.00027397,2]
[313040281,1706674240656,-793.97,0.00027397,2]
[313040282,1706674240665,-500.0,0.00027397,2]
[313040283,1706674240675,-500.0,0.00027397,2]
[313040284,1706674240684,-500.0,0.00027397,2]
[313040285,1706674240693,-500.0,0.00027397,2]
[313040286,1706674240702,-500.0,0.00027397,2]
[313040288,1706674240711,-500.0,0.00027397,2]
[313040290,1706674240720,-508.39626117,0.00027397,2]
[313040291,1706674240729,-2184.41,0.00027397,2]
[313040293,1706674240738,-500.0,0.00027397,2]
[313040295,1706674240747,-500.0,0.00027397,2]
[313040296,1706674240757,-151.0,0.00027397,2]
[313040297,1706674240766,-151.0,0.00027397,2]
[313040298,1706674240776,-245.150821,0.00027397,2]
[313040299,1706674240789,-528.13712602,0.00027397,2]
[313040300,1706674240797,-500.0,0.00027397,2]
[313040301,1706674240806,-500.0,0.00027397,2]
[313040302,1706674240816,-357.03923646,0.00027397,2]
[313040303,1706674240826,-501.3,0.00027397,2]
[313040304,1706674240835,-500.0,0.00027397,2]
[313040305,1706674240844,-500.0,0.00027397,2]
[313040306,1706674240853,-812.061913,0.00027397,2]
[313040307,1706674240864,-812.061913,0.00027397,2]
[313040308,1706674240873,-812.061913,0.00027397,2]
[313040309,1706674240882,-812.061913,0.00027397,2]
[313040310,1706674240891,-812.061913,0.00027397,2]
[313040311,1706674240901,-812.061913,0.00027397,2]
[313040312,1706674240910,-812.061913,0.00027397,2]
[313040313,1706674240919,-812.061913,0.00027397,2]
[313040314,1706674240928,-812.061913,0.00027397,2]
[313040315,1706674240937,-812.061913,0.00027397,2]
[313040316,1706674240946,-812.061913,0.00027397,2]
[313040317,1706674240956,-812.061913,0.00027397,2]
[313040318,1706674240965,-812.061913,0.00027397,2]
[313040319,1706674240974,-812.061913,0.00027397,2]
[313040320,1706674240983,-812.061913,0.00027397,2]
[313040321,1706674240993,-812.061913,0.00027397,2]
[313040322,1706674241002,-812.061913,0.00027397,2]
[313040323,1706674241011,-2029.62,0.00027397,2]
[313040324,1706674241021,-812.061913,0.00027397,2]
[313040325,1706674241030,-2029.62,0.00027397,2]
[313040326,1706674241040,-2029.62,0.00027397,2]
[313040327,1706674241050,-2029.62,0.00027397,2]
[313040328,1706674241059,-2029.62,0.00027397,2]
[313040329,1706674241068,-2029.62,0.00027397,2]
[313040330,1706674241078,-2029.62,0.00027397,2]
[313040331,1706674241088,-2029.62,0.00027397,2]
[313040332,1706674241097,-2029.62,0.00027397,2]
[313040333,1706674241107,-2029.62,0.00027397,2]
[313040334,1706674241117,-2029.62,0.00027397,2]
[313040335,1706674241126,-2029.62,0.00027397,2]
[313040336,1706674241134,-2029.62,0.00027397,2]
[313040337,1706674241144,-2029.62,0.00027397,2]
[313040338,1706674241153,-2029.62,0.00027397,2]
[313040339,1706674241163,-2029.62,0.00027397,2]
[313040340,1706674241172,-2029.62,0.00027397,2]
[313040341,1706674241181,-2029.62,0.00027397,2]
[313040342,1706674241190,-2029.62,0.00027397,2]
[313040343,1706674241198,-2029.62,0.00027397,2]
[313040344,1706674241207,-2029.62,0.00027397,2]
[313040345,1706674241217,-2029.62,0.00027397,2]
[313040347,1706674241227,-2029.62,0.00027397,2]
[313040348,1706674241236,-2029.71980372,0.00027397,2]
[313040349,1706674241245,-500.0,0.00027397,2]
[313040350,1706674241257,-500.0,0.00027397,2]
[313040351,1706674241266,-500.0,0.00027397,2]
[313040352,1706674241274,-500.0,0.00027397,2]
[313040353,1706674241283,-500.0,0.00027397,2]
[313040354,1706674241292,-500.0,0.00027397,2]
[313040355,1706674241301,-4896.25,0.00027397,2]
[313040356,1706674241310,-2668.76,0.00027397,2]
[313040357,1706674241319,-957.7,0.00027397,2]
[313040358,1706674241328,-535.27,0.00027397,2]
[313040359,1706674241337,-500.0,0.00027397,2]
[313040360,1706674241346,-261.84475121,0.00027397,2]
[313040361,1706674241355,-228.77193586,0.00027397,2]
[313040362,1706674241364,-1814.14,0.00027397,2]
[313040363,1706674241373,-500.0,0.00027397,2]
[313040364,1706674241382,-3219.18,0.00027397,2]
[313040365,1706674241391,-2593.71,0.00027397,2]
[313040366,1706674241400,-500.0,0.00027397,2]
[313040367,1706674241409,-500.0,0.00027397,2]
[313040368,1706674241418,-500.0,0.00027397,2]
[313040369,1706674241427,-5744.67,0.00027397,2]
[313040370,1706674241436,-500.0,0.00027397,2]
[313040371,1706674241445,-500.0,0.00027397,2]
[313040372,1706674241455,-4438.04,0.00027397,2]
[313040373,1706674241464,-500.0,0.00027397,2]
[313040374,1706674241473,-500.0,0.00027397,2]
[313040375,1706674241482,-878.6,0.00027397,2]
[313040376,1706674241490,-500.0,0.00027397,2]
[313040377,1706674241499,-500.0,0.00027397,2]
[313040378,1706674241509,-500.0,0.00027397,2]
[313040379,1706674241519,-500.0,0.00027397,2]
[313040380,1706674241529,-500.0,0.00027397,2]
[313040381,1706674241538,-7052.62,0.00027397,2]
[313040382,1706674241547,-3104.9,0.00027397,2]
[313040383,1706674241557,-500.0,0.00027397,2]
[313040384,1706674241566,-920.18,0.00027397,2]
[313040385,1706674241575,-500.0,0.00027397,2]
[313040386,1706674241584,-534.31913491,0.00027397,2]
[313040387,1706674241660,-500.0,0.00027397,2]
[313040388,1706674241670,-845.46,0.00027397,2]
[313040389,1706674241679,-500.0,0.00027397,2]
[313040390,1706674241689,-520.91315073,0.00027397,2]
[313040391,1706674241698,-31402.86,0.00027397,2]
[313040392,1706674241707,-505.93559687,0.00027397,2]
[313040393,1706674241717,-3793.11,0.00027397,2]
[313040394,1706674241725,-500.0,0.00027397,2]
[313040395,1706674241736,-500.0,0.00027397,2]
[313040396,1706674241745,-500.0,0.00027397,2]
[313040397,1706674241755,-500.0,0.00027397,2]
[313040398,1706674241764,-528.93,0.00027397,2]
[313040399,1706674241774,-500.0,0.00027397,2]
[313040400,1706674241787,-545.33542556,0.00027397,2]
[313040401,1706674241797,-500.0,0.00027397,2]
[313040402,1706674241806,-500.0,0.00027397,2]
[313040403,1706674241816,-743.671919,0.00027397,2]
[313040404,1706674241827,-743.671919,0.00027397,2]
[313040405,1706674241836,-743.671919,0.00027397,2]
[313040406,1706674241846,-743.671919,0.00027397,2]
[313040407,1706674241855,-743.671919,0.00027397,2]
[313040408,1706674241865,-743.671919,0.00027397,2]
[313040409,1706674241874,-743.671919,0.00027397,2]
[313040410,1706674241883,-743.671919,0.00027397,2]
[313040411,1706674241893,-500.0,0.00027397,2]
[313040412,1706674241902,-743.671919,0.00027397,2]
[313040413,1706674241913,-500.0,0.00027397,2]
[313040414,1706674241922,-743.671919,0.00027397,2]
[313040415,1706674241932,-743.671919,0.00027397,2]
[313040416,1706674241941,-743.671919,0.00027397,2]
[313040417,1706674241951,-743.671919,0.00027397,2]
[313040418,1706674241961,-743.671919,0.00027397,2]
[313040419,1706674241971,-743.671919,0.00027397,2]
[313040420,1706674241981,-743.671919,0.00027397,2]
[313040421,1706674241990,-743.671919,0.00027397,2]
[313040422,1706674242000,-743.671923,0.00027397,2]
[313040423,1706674242009,-578.33480574,0.00027397,2]
[313040424,1706674242018,-509.93324469,0.00027397,2]
[313040425,1706674242028,-1895.41,0.00027397,2]
[313040426,1706674242038,-526.20364581,0.00027397,2]
[313040427,1706674242048,-500.0,0.00027397,2]
[313040428,1706674242057,-500.0,0.00027397,2]
[313040429,1706674242067,-1438.2,0.00027397,2]
[313040430,1706674242076,-1102.28,0.00027397,2]
[313040431,1706674242085,-15781.7,0.00027397,2]
[313040432,1706674242095,-500.0,0.00027397,2]
[313040433,1706674242105,-633.82584577,0.00027397,2]
[313040434,1706674242114,-500.0,0.00027397,2]
[313040435,1706674242125,-1450.78,0.00027397,2]
[313040436,1706674242135,-226.34165706,0.00027397,2]
[313040437,1706674242145,-500.0,0.00027397,2]
[313040438,1706674242155,-500.0,0.00027397,2]
[313040439,1706674242165,-500.0,0.00027397,2]
[313040440,1706674242174,-151.0,0.00027397,2]
[313040441,1706674242183,-212.985165,0.00027397,2]
[313040442,1706674242192,-500.0,0.00027397,2]
[313040443,1706674242201,-500.0,0.00027397,2]
[313040444,1706674242211,-500.0,0.00027397,2]
[313040445,1706674242220,-500.0,0.00027397,2]
[313040446,1706674242230,-2455.81,0.00027397,2]
[313040447,1706674242241,-500.0,0.00027397,2]
[313040448,1706674242250,-330.30315259,0.00027397,2]
[313040449,1706674242260,-500.0,0.00027397,2]
[313040450,1706674242270,-500.0,0.00027397,2]
[313040451,1706674242279,-500.0,0.00027397,2]
[313040452,1706674242288,-511.86998028,0.00027397,2]
[313040453,1706674242298,-500.0,0.00027397,2]
[313040454,1706674242308,-13725.85,0.00027397,2]
[313040455,1706674242317,-501.61482898,0.00027397,2]
[313040456,1706674242327,-501.01811761,0.00027397,2]
[313040457,1706674242336,-500.0,0.00027397,2]
[313040458,1706674242346,-352.27375048,0.00027397,2]
[313040459,1706674242355,-500.0,0.00027397,2]
[313040460,1706674242365,-500.0,0.00027397,2]
[313040461,1706674242374,-609.4752151,0.00027397,2]
[313040462,1706674242383,-6428.02,0.00027397,2]
[313040463,1706674242392,-518.82678093,0.00027397,2]
[313040464,1706674242402,-500.0,0.00027397,2]
[313040465,1706674242411,-6223.9395,0.00027397,2]
[313040466,1706674242420,-6223.9395,0.00027397,2]
[313040467,1706674242429,-6223.9395,0.00027397,2]
[313040468,1706674242438,-6223.9395,0.00027397,2]
[313040469,1706674242448,-6223.9395,0.00027397,2]
[313040470,1706674242459,-6223.9395,0.00027397,2]
[313040471,1706674242468,-6223.9395,0.00027397,2]
[313040472,1706674242477,-6223.9395,0.00027397,2]
[313040473,1706674242486,-6223.9395,0.00027397,2]
[313040474,1706674242495,-6223.9395,0.00027397,2]
[313040475,1706674242505,-6223.9395,0.00027397,2]
[313040476,1706674242515,-1591.65590526,0.00027397,2]
[313040477,1706674242536,-4632.28359474,0.00027397,2]
[313040478,1706674242546,-1328.06,0.00027397,2]
[313040479,1706674242555,-682.98846432,0.00027397,2]
[313040480,1706674242778,-5540.95103568,0.00027397,2]
[313040481,1706674242788,-1533.75,0.00027397,2]
[313040482,1706674242797,-6223.9395,0.00027397,2]
[313040483,1706674242806,-6223.9395,0.00027397,2]
[313040484,1706674242815,-6223.9395,0.00027397,2]
[313040485,1706674242825,-6223.9395,0.00027397,2]
[313040486,1706674242835,-6223.93949,0.00027397,2]
[313040487,1706674242844,-444.12711653,0.00027397,2]
[313040488,1706674242855,-507.30192605,0.00027397,2]
[313040489,1706674242865,-502.84670669,0.00027397,2]
[313040490,1706674242874,-500.0,0.00027397,2]
[313040491,1706674242883,-500.0,0.00027397,2]
[313040493,1706674242893,-2827.47,0.00027397,2]
[313040495,1706674242902,-506.79591505,0.00027397,2]
[313040497,1706674242911,-500.0,0.00027397,2]
[313040499,1706674242920,-500.0,0.00027397,2]
[313040501,1706674242929,-1658.45053279,0.00027397,2]
[313040537,1706674243275,-586.86946721,0.00027397,2]
[313040539,1706674243285,-500.0,0.00027397,2]
[313040541,1706674243294,-566.53053279,0.00027397,2]
[313040546,1706674243330,-4049.40041452,0.00027397,2]
[313040656,1706674246387,-7040.53638656,0.00027387,3]
[313040714,1706675438461,-273.02300698,0.00021047,2]
[313040715,1706675438471,-13044.85165346,0.00021048,2]
[313040716,1706675438481,-2106.9014739,0.00021055,2]
[313040717,1706675438491,-310.02170165,0.00021055,2]
[313040718,1706675438501,-159.65293113,0.00021055,2]
[313040719,1706675438511,-3747.87536289,0.00021055,2]
[313040720,1706675438521,-262.89218231,0.00021055,2]
[313040721,1706675438531,-427.35447033,0.00021055,2]
[313040722,1706675438542,-592.73240842,0.00021055,2]